[Event "EYCC Open-U18 2019"]
[Site "Bratislava"]
[Date "2019.08.02"]
[Round "1.16"]
[White "Chatzieleftheriou, Andreas"]
[Black "Zarubitski, Viachaslau"]
[Result "0-1"]
[ECO "B47"]
[WhiteElo "2208"]
[BlackElo "2424"]
[Annotator "NA"]
[PlyCount "82"]
[EventDate "2019.08.02"]
[EventType "swiss"]
[EventCountry "SVK"]
[SourceTitle "playchess.com"]
[Source "ChessBase"]
[SourceQuality "1"]
[TimeControl "40/5400+30:1800+30"]

1. e4 {[%emt 0:00:00]} c5 {[%emt 0:00:00]} 2. Nf3 {[%emt 0:00:00]} e6 {[%emt 0:00:00]} 3. d4 {[%emt 0:00:13]} cxd4 {[%emt 0:00:01]} 4. Nxd4 {[%emt 0:00:17]} Nc6 {[%emt 0:00:04]} 5. Nc3 {[%emt 0:00:23]} Qc7 {[%emt 0:00:12]} 6. Qd3 {[%emt 0:01:04]} a6 {[%emt 0:11:41]} 7. Nxc6 {[%emt 0:02:03]} Qxc6 {[%emt 0:10:39]} 8. Qg3 {[%emt 0:00:57]} Ne7 {[%emt 0:10:23]} 9. Bd3 {[%emt 0:03:46]} Ng6 {[%emt 0:03:24]} 10. h4 {[%emt 0:01:51]} Bd6 {[%emt 0:09:55]} 11. f4 {[%emt 0:06:31]} Qc7 {[%emt 0:17:08]} 12. Ne2 {[%emt 0:24:28]} O-O {[%emt 0:06:18]} 13. h5 {[%emt 0:04:07]} Ne7 {[%emt 0:00:00]} 14. Bd2 {[%emt 0:00:53]} f6 {[%emt 0:05:30]} 15. Bc3 {[%emt 0:06:33]} b5 {[%emt 0:02:26]} 16. Rh4 {[%emt 0:08:22]} e5 {[%emt 0:04:19]} 17. Rg4 {[%emt 0:07:39]} Rf7 {[%emt 0:00:03]} 18. fxe5 {[%emt 0:02:42]} Bxe5 {[%emt 0:01:07]} 19. Bxe5 {[%emt 0:00:08]} fxe5 {[%emt 0:01:28]} 20. h6 {[%emt 0:01:17]} g6 {[%emt 0:00:06]} 21. Rg5 {[%emt 0:05:00]} d6 {[%emt 0:00:10]} 22. a4 {[%emt 0:02:34]} b4 {[%emt 0:02:46]} 23. Qe3 {[%emt 0:03:05]} a5 {[%emt 0:02:45]} 24. O-O-O {[%emt 0:01:44]} Be6 {[%emt 0:01:01]} 25. Kb1 {[%emt 0:02:26]} Raf8 {[%emt 0:00:58]} 26. Rg3 {[%emt 0:01:13]} Nc8 {[%emt 0:03:33]} 27. Rf3 {[%emt 0:05:14]} Nb6 {[%emt 0:00:16]} 28. b3 {[%emt 0:01:11]} Nd7 {[%emt 0:00:35]} 29. Rdf1 {[%emt 0:00:39]} Nc5 {[%emt 0:00:19]} 30. Rxf7 {[%emt 0:02:09]} Rxf7 {[%emt 0:00:04]} 31. Nc1 {[%emt 0:01:41]} Rxf1 {[%emt 0:03:50]} 32. Bxf1 {[%emt 0:00:02]} Qf7 {[%emt 0:00:14]} 33. Bb5 {[%emt 0:02:31]} Qf4 {[%emt 0:01:00]} 34. Qxf4 {[%emt 0:00:36]} exf4 {[%emt 0:00:03]} 35. Nd3 {[%emt 0:01:58]} g5 {[%emt 0:03:03]} 36. Nxc5 {[%emt 0:00:47]} dxc5 {[%emt 0:00:00]} 37. Bd3 {[%emt 0:00:14]} g4 {[%emt 0:01:28]} 38. Kc1 {[%emt 0:00:41]} g3 {[%emt 0:00:57]} 39. e5 {[%emt 0:01:54]} Bd5 {[%emt 0:00:28]} 40. e6 {[%emt 0:00:00]} f3 {[%emt 0:00:00]} 41. e7 {[%emt 0:00:57]} Kf7 {[%emt 0:01:12]} 0-1

[Event "EYCC Open-U18 2019"]
[Site "Bratislava"]
[Date "2019.08.02"]
[Round "1.17"]
[White "Miesbauer, Jan"]
[Black "Garanin, Aleksei"]
[Result "0-1"]
[ECO "A16"]
[WhiteElo "2409"]
[BlackElo "2192"]
[Annotator "NA"]
[PlyCount "80"]
[EventDate "2019.08.02"]
[EventType "swiss"]
[EventCountry "SVK"]
[SourceTitle "playchess.com"]
[Source "ChessBase"]
[SourceQuality "1"]
[TimeControl "40/5400+30:1800+30"]

1. c4 {[%emt 0:00:00]} Nf6 {[%emt 0:00:00]} 2. Nc3 {[%emt 0:00:00]} g6 {[%emt 0:00:00]} 3. g3 {[%emt 0:00:00]} Bg7 {[%emt 0:00:00]} 4. Bg2 {[%emt 0:00:02]} O-O {[%emt 0:00:03]} 5. e4 {[%emt 0:00:12]} d6 {[%emt 0:00:39]} 6. Nge2 {[%emt 0:00:18]} e5 {[%emt 0:01:11]} 7. O-O {[%emt 0:00:28]} c6 {[%emt 0:04:58]} 8. d3 {[%emt 0:01:49]} Be6 {[%emt 0:05:35]} 9. h3 {[%emt 0:02:40]} Qd7 {[%emt 0:02:38]} 10. g4 {[%emt 0:12:27]} h5 {[%emt 0:05:28]} 11. g5 {[%emt 0:00:29]} Ne8 {[%emt 0:00:14]} 12. h4 {[%emt 0:05:14]} Bh3 {[%emt 0:09:20]} 13. Ng3 {[%emt 0:00:37]} Nc7 {[%emt 0:01:22]} 14. f4 {[%emt 0:06:38]} exf4 {[%emt 0:00:21]} 15. Bxf4 {[%emt 0:00:14]} Nba6 {[%emt 0:06:18]} 16. Qd2 {[%emt 0:13:53]} Rad8 {[%emt 0:02:11]} 17. Kh2 {[%emt 0:03:58]} Bxg2 {[%emt 0:00:41]} 18. Qxg2 {[%emt 0:00:10]} Ne6 {[%emt 0:05:15]} 19. Be3 {[%emt 0:00:21]} Nd4 {[%emt 0:13:05]} 20. Qf2 {[%emt 0:04:46]} c5 21. Qg2 {[%emt 0:02:18]} Nb4 {[%emt 0:07:14]} 22. Rad1 {[%emt 0:00:26]} Be5 {[%emt 0:05:17]} 23. Qh3 {[%emt 0:03:50]} Qg4 {[%emt 0:03:03]} 24. Qxg4 {[%emt 0:09:56]} hxg4 {[%emt 0:00:01]} 25. Kg2 {[%emt 0:00:26]} Nf3 {[%emt 0:02:16]} 26. Rh1 {[%emt 0:00:37]} f5 27. exf5 {[%emt 0:03:15]} gxf5 {[%emt 0:03:33]} 28. Bf2 {[%emt 0:00:23]} Nc2 {[%emt 0:02:32]} 29. Nd5 {[%emt 0:01:05]} Ncd4 {[%emt 0:01:35]} 30. Nh5 {[%emt 0:12:51]} f4 {[%emt 0:02:57]} 31. Nhf6+ {[%emt 0:00:57]} Bxf6 {[%emt 0:02:00]} 32. Nxf6+ {[%emt 0:00:30]} Rxf6 {[%emt 0:02:09]} 33. gxf6 {[%emt 0:00:06]} Nf5 {[%emt 0:01:32]} 34. b4 {[%emt 0:04:55]} Re8 {[%emt 0:00:39]} 35. Rhe1 {[%emt 0:04:14]} Nxe1+ {[%emt 0:00:42]} 36. Rxe1 {[%emt 0:00:05]} Rxe1 {[%emt 0:00:21]} 37. Bxe1 {[%emt 0:00:05]} Kf7 {[%emt 0:00:24]} 38. Bd2 {[%emt 0:00:37]} Nxh4+ {[%emt 0:00:34]} 39. Kf2 {[%emt 0:00:50]} g3+ {[%emt 0:00:18]} 40. Ke2 {[%emt 0:00:00]} f3+ {[%emt 0:00:00]} 0-1

[Event "EYCC Open-U18 2019"]
[Site "Bratislava"]
[Date "2019.08.02"]
[Round "1.18"]
[White "Pirard, Natan"]
[Black "Travadon, Loic"]
[Result "1/2-1/2"]
[ECO "B30"]
[WhiteElo "2153"]
[BlackElo "2403"]
[Annotator "NA"]
[PlyCount "125"]
[EventDate "2019.08.02"]
[EventType "swiss"]
[EventCountry "SVK"]
[SourceTitle "playchess.com"]
[Source "ChessBase"]
[SourceQuality "1"]
[TimeControl "40/5400+30:1800+30"]

1. e4 {[%emt 0:00:00]} c5 {[%emt 0:00:00]} 2. Nf3 {[%emt 0:00:00]} Nc6 {[%emt 0:00:00]} 3. Bb5 {[%emt 0:00:07]} e6 {[%emt 0:00:00]} 4. Bxc6 {[%emt 0:01:55]} bxc6 {[%emt 0:00:00]} 5. O-O {[%emt 0:01:44]} Ne7 {[%emt 0:00:30]} 6. Re1 {[%emt 0:06:24]} Ng6 {[%emt 0:00:56]} 7. d3 {[%emt 0:05:11]} Be7 {[%emt 0:01:38]} 8. Nc3 {[%emt 0:03:52]} e5 {[%emt 0:00:16]} 9. Ne2 {[%emt 0:03:40]} d6 {[%emt 0:05:43]} 10. Ng3 {[%emt 0:04:57]} O-O {[%emt 0:02:12]} 11. c3 {[%emt 0:04:31]} f5 {[%emt 0:04:06]} 12. exf5 {[%emt 0:03:16]} Bxf5 {[%emt 0:00:08]} 13. Nxf5 {[%emt 0:01:24]} Rxf5 {[%emt 0:00:14]} 14. d4 {[%emt 0:00:45]} exd4 {[%emt 0:03:16]} 15. cxd4 {[%emt 0:00:08]} Kh8 {[%emt 0:08:56]} 16. dxc5 {[%emt 0:04:34]} Rxc5 {[%emt 0:00:28]} 17. Be3 {[%emt 0:01:52]} Rd5 {[%emt 0:00:46]} 18. Qa4 {[%emt 0:01:37]} Qd7 {[%emt 0:13:18]} 19. Rac1 {[%emt 0:05:25]} Rc8 {[%emt 0:00:47]} 20. Qe4 {[%emt 0:16:11]} Bf6 {[%emt 0:01:37]} 21. b3 {[%emt 0:08:40]} a5 {[%emt 0:04:37]} 22. h3 {[%emt 0:04:32]} Rb5 {[%emt 0:05:15]} 23. Bd4 {[%emt 0:04:38]} Bxd4 {[%emt 0:01:07]} 24. Nxd4 {[%emt 0:00:46]} Re5 {[%emt 0:00:10]} 25. Qg4 {[%emt 0:01:49]} Qb7 {[%emt 0:09:40]} 26. Nf5 {[%emt 0:05:43]} Rd8 {[%emt 0:01:20]} 27. Rxe5 {[%emt 0:02:41]} dxe5 {[%emt 0:00:24]} 28. Qe4 {[%emt 0:00:59]} Qf7 {[%emt 0:11:21]} 29. Rxc6 {[%emt 0:02:38]} Rf8 {[%emt 0:00:18]} 30. g4 {[%emt 0:00:58]} Qb7 {[%emt 0:03:37]} 31. Qd5 {[%emt 0:02:01]} Qb4 {[%emt 0:00:37]} 32. Rc1 {[%emt 0:01:02]} Nf4 {[%emt 0:00:31]} 33. Qxe5 {[%emt 0:00:48]} Nxh3+ {[%emt 0:00:10]} 34. Kh2 {[%emt 0:00:15]} Qxg4 {[%emt 0:00:23]} 35. Rc4 {[%emt 0:01:01]} Nxf2 {[%emt 0:00:19]} 36. Qf4 {[%emt 0:01:15]} Qxf4+ {[%emt 0:03:50]} 37. Rxf4 {[%emt 0:00:05]} Nd3 {[%emt 0:00:07]} 38. Rd4 {[%emt 0:00:32]} Ne5 {[%emt 0:00:32]} 39. Kg3 {[%emt 0:00:27]} g6 {[%emt 0:00:10]} 40. Nd6 {[%emt 0:00:00]} Rf3+ {[%emt 0:00:00]} 41. Kg2 {[%emt 0:03:43]} Rc3 {[%emt 0:14:57]} 42. Ra4 {[%emt 0:05:40]} Rd3 {[%emt 0:01:59]} 43. Rxa5 {[%emt 0:05:03]} Ng4 {[%emt 0:01:43]} 44. Ne8 {[%emt 0:02:02]} Rd8 {[%emt 0:00:25]} 45. Nc7 {[%emt 0:00:21]} h5 {[%emt 0:02:12]} 46. Ne6 {[%emt 0:02:27]} Rd2+ {[%emt 0:01:40]} 47. Kg3 {[%emt 0:00:09]} Re2 {[%emt 0:08:05]} 48. Nf4 {[%emt 0:03:47]} Re3+ {[%emt 0:00:04]} 49. Kh4 {[%emt 0:01:45]} Kg7 {[%emt 0:01:50]} 50. Kg5 {[%emt 0:03:35]} Ne5 {[%emt 0:00:18]} 51. Ne6+ {[%emt 0:02:53]} Kf7 {[%emt 0:00:04]} 52. Nd8+ {[%emt 0:00:18]} Ke8 {[%emt 0:00:26]} 53. Rd5 {[%emt 0:00:57]} Re2 {[%emt 0:02:32]} 54. a4 {[%emt 0:01:22]} Rg2+ {[%emt 0:00:27]} 55. Kf4 {[%emt 0:00:26]} Nd7 {[%emt 0:00:18]} 56. Nc6 {[%emt 0:00:40]} h4 {[%emt 0:01:38]} 57. Rd3 {[%emt 0:02:22]} Nf6 {[%emt 0:02:52]} 58. a5 {[%emt 0:00:54]} Rg4+ {[%emt 0:00:23]} 59. Ke5 {[%emt 0:00:23]} Kf7 {[%emt 0:03:10]} 60. Nd8+ {[%emt 0:01:06]} Ke7 {[%emt 0:00:08]} 61. Nc6+ {[%emt 0:00:04]} Kf7 {[%emt 0:00:01]} 62. Nd8+ {[%emt 0:00:31]} Ke7 {[%emt 0:00:23]} 63. Nc6+ {[%emt 0:00:02]} 1/2-1/2

[Event "EYCC Open-U18 2019"]
[Site "Bratislava"]
[Date "2019.08.02"]
[Round "1.19"]
[White "Mitsis, Georgios"]
[Black "Gloser, David"]
[Result "1-0"]
[ECO "D85"]
[WhiteElo "2399"]
[BlackElo "2123"]
[Annotator "NA"]
[PlyCount "73"]
[EventDate "2019.08.02"]
[EventType "swiss"]
[EventCountry "SVK"]
[SourceTitle "playchess.com"]
[Source "ChessBase"]
[SourceQuality "1"]
[TimeControl "40/5400+30:1800+30"]

1. d4 {[%emt 0:00:00]} Nf6 {[%emt 0:00:00]} 2. Nf3 {[%emt 0:00:00]} g6 {[%emt 0:00:00]} 3. c4 {[%emt 0:00:00]} Bg7 {[%emt 0:00:29]} 4. Nc3 {[%emt 0:00:04]} d5 {[%emt 0:00:16]} 5. cxd5 {[%emt 0:02:07]} Nxd5 {[%emt 0:00:11]} 6. e4 {[%emt 0:00:13]} Nxc3 {[%emt 0:00:14]} 7. bxc3 {[%emt 0:00:07]} c5 {[%emt 0:00:40]} 8. Rb1 {[%emt 0:01:17]} O-O {[%emt 0:01:41]} 9. Be2 {[%emt 0:00:11]} b6 {[%emt 0:02:08]} 10. O-O {[%emt 0:00:23]} Qc7 {[%emt 0:01:25]} 11. Be3 {[%emt 0:07:10]} Bb7 {[%emt 0:03:47]} 12. d5 {[%emt 0:04:01]} Bxc3 {[%emt 0:03:57]} 13. Qc1 {[%emt 0:12:37]} Bg7 {[%emt 0:01:11]} 14. Bf4 {[%emt 0:01:36]} Qc8 {[%emt 0:09:12]} 15. Bc4 {[%emt 0:01:11]} Ba6 {[%emt 0:06:08]} 16. e5 {[%emt 0:04:29]} e6 {[%emt 0:08:04]} 17. Ng5 {[%emt 0:21:49]} Bxc4 {[%emt 0:04:20]} 18. Qxc4 {[%emt 0:01:30]} exd5 {[%emt 0:00:40]} 19. Qxd5 {[%emt 0:00:06]} Qc6 {[%emt 0:00:39]} 20. Qc4 {[%emt 0:00:27]} h6 {[%emt 0:04:54]} 21. Nxf7 {[%emt 0:11:13]} Rxf7 {[%emt 0:00:47]} 22. Rfd1 {[%emt 0:00:09]} Qe8 {[%emt 0:04:14]} 23. e6 {[%emt 0:05:39]} Rxf4 {[%emt 0:06:20]} 24. Qxf4 {[%emt 0:01:04]} Nc6 {[%emt 0:00:50]} 25. Re1 {[%emt 0:09:40]} Rd8 {[%emt 0:13:00]} 26. h3 {[%emt 0:02:12]} Nd4 {[%emt 0:04:27]} 27. Qc7 {[%emt 0:00:12]} Ra8 {[%emt 0:04:29]} 28. e7 {[%emt 0:05:36]} Bf6 {[%emt 0:02:04]} 29. Qb7 {[%emt 0:00:36]} Bxe7 {[%emt 0:03:56]} 30. Rxe7 {[%emt 0:00:06]} Qf8 {[%emt 0:00:09]} 31. Rbe1 {[%emt 0:00:12]} Nf5 {[%emt 0:02:05]} 32. Qd5+ {[%emt 0:00:09]} Kh8 {[%emt 0:00:16]} 33. Qe5+ {[%emt 0:00:07]} Ng7 {[%emt 0:00:11]} 34. Rd1 {[%emt 0:00:19]} Re8 {[%emt 0:00:37]} 35. Rdd7 {[%emt 0:00:27]} Rxe7 {[%emt 0:01:29]} 36. Rxe7 {[%emt 0:00:04]} a6 {[%emt 0:00:51]} 37. Rb7 {[%emt 0:00:08]} 1-0

[Event "EYCC Open-U18 2019"]
[Site "Bratislava"]
[Date "2019.08.02"]
[Round "1.20"]
[White "Bekasovs, Rihards"]
[Black "Bronstein, Or"]
[Result "0-1"]
[ECO "B51"]
[WhiteElo "2144"]
[BlackElo "2378"]
[Annotator "NA"]
[PlyCount "80"]
[EventDate "2019.08.02"]
[EventType "swiss"]
[EventCountry "SVK"]
[SourceTitle "playchess.com"]
[Source "ChessBase"]
[SourceQuality "1"]
[TimeControl "40/5400+30:1800+30"]

1. e4 {[%emt 0:00:00]} c5 {[%emt 0:00:00]} 2. Nf3 {[%emt 0:00:00]} d6 {[%emt 0:00:32]} 3. Bb5+ {[%emt 0:00:15]} Nd7 {[%emt 0:00:09]} 4. d4 {[%emt 0:01:01]} cxd4 {[%emt 0:00:06]} 5. Qxd4 {[%emt 0:00:08]} a6 {[%emt 0:00:05]} 6. Bxd7+ {[%emt 0:02:44]} Bxd7 {[%emt 0:00:39]} 7. Nc3 {[%emt 0:04:29]} e5 {[%emt 0:00:45]} 8. Qd3 {[%emt 0:00:08]} Rc8 {[%emt 0:00:16]} 9. O-O {[%emt 0:06:49]} Be6 {[%emt 0:04:01]} 10. Rd1 {[%emt 0:10:38]} Qc7 {[%emt 0:01:09]} 11. h3 {[%emt 0:14:37]} Be7 {[%emt 0:07:03]} 12. Bg5 {[%emt 0:04:40]} Rd8 {[%emt 0:08:04]} 13. Qd2 {[%emt 0:20:08]} h6 {[%emt 0:01:15]} 14. Bxe7 {[%emt 0:02:39]} Nxe7 {[%emt 0:00:17]} 15. Rac1 {[%emt 0:01:26]} O-O {[%emt 0:05:53]} 16. Nd5 {[%emt 0:01:29]} Bxd5 {[%emt 0:03:17]} 17. exd5 {[%emt 0:00:02]} e4 {[%emt 0:01:09]} 18. Nd4 {[%emt 0:05:24]} Nxd5 {[%emt 0:04:07]} 19. Nb5 {[%emt 0:00:06]} axb5 {[%emt 0:00:55]} 20. Qxd5 {[%emt 0:00:02]} Qc6 {[%emt 0:00:33]} 21. Rd4 {[%emt 0:01:35]} Rfe8 {[%emt 0:02:47]} 22. c3 {[%emt 0:01:49]} Re5 {[%emt 0:18:59]} 23. Qxe5 {[%emt 0:00:58]} dxe5 {[%emt 0:00:01]} 24. Rxd8+ {[%emt 0:00:01]} Kh7 {[%emt 0:00:01]} 25. Rcd1 {[%emt 0:02:42]} Qc4 {[%emt 0:00:30]} 26. R8d5 {[%emt 0:03:04]} e3 {[%emt 0:07:51]} 27. fxe3 {[%emt 0:01:55]} Qe2 {[%emt 0:00:01]} 28. e4 {[%emt 0:05:52]} Qxe4 {[%emt 0:02:03]} 29. Rxb5 {[%emt 0:02:07]} Qe2 {[%emt 0:00:46]} 30. Rbd5 {[%emt 0:01:27]} f5 {[%emt 0:02:53]} 31. R5d2 {[%emt 0:02:33]} Qe3+ {[%emt 0:00:49]} 32. Kf1 {[%emt 0:00:53]} e4 {[%emt 0:02:25]} 33. Re2 {[%emt 0:00:45]} Qg3 {[%emt 0:02:35]} 34. Rde1 {[%emt 0:03:06]} h5 {[%emt 0:02:24]} 35. Rf2 {[%emt 0:00:39]} Qd3+ {[%emt 0:02:48]} 36. Kg1 {[%emt 0:00:47]} e3 {[%emt 0:00:06]} 37. Rf3 {[%emt 0:00:55]} f4 {[%emt 0:00:07]} 38. Rxf4 {[%emt 0:00:35]} Qd2 {[%emt 0:00:06]} 39. Ref1 {[%emt 0:00:31]} e2 {[%emt 0:00:06]} 40. Rb4 {[%emt 0:00:00]} Qe3+ {[%emt 0:00:00]} 0-1

[Event "EYCC Open-U18 2019"]
[Site "Bratislava"]
[Date "2019.08.02"]
[Round "1.21"]
[White "Gorshtein, Ido"]
[Black "Pobor, Danilo"]
[Result "1-0"]
[ECO "D45"]
[WhiteElo "2367"]
[BlackElo "1996"]
[Annotator "NA"]
[PlyCount "131"]
[EventDate "2019.08.02"]
[EventType "swiss"]
[EventCountry "SVK"]
[SourceTitle "playchess.com"]
[Source "ChessBase"]
[SourceQuality "1"]
[TimeControl "40/5400+30:1800+30"]

1. d4 {[%emt 0:00:00]} d5 {[%emt 0:00:00]} 2. c4 {[%emt 0:00:00]} e6 {[%emt 0:00:00]} 3. Nc3 {[%emt 0:00:00]} c6 {[%emt 0:00:00]} 4. e3 {[%emt 0:01:57]} Nf6 {[%emt 0:01:23]} 5. Nf3 {[%emt 0:00:08]} Bd6 {[%emt 0:01:37]} 6. b3 {[%emt 0:02:55]} O-O {[%emt 0:04:30]} 7. Be2 {[%emt 0:01:59]} b6 {[%emt 0:03:30]} 8. Bb2 {[%emt 0:00:57]} Bb7 {[%emt 0:00:21]} 9. Qc2 {[%emt 0:00:41]} c5 {[%emt 0:04:27]} 10. dxc5 {[%emt 0:06:30]} Bxc5 {[%emt 0:02:46]} 11. Rd1 {[%emt 0:06:04]} Qe7 {[%emt 0:04:32]} 12. cxd5 {[%emt 0:08:45]} Nxd5 {[%emt 0:06:01]} 13. O-O {[%emt 0:02:20]} Nd7 {[%emt 0:16:27]} 14. Ne4 {[%emt 0:19:26]} Rfc8 {[%emt 0:09:24]} 15. Nxc5 {[%emt 0:01:28]} Qxc5 {[%emt 0:08:33]} 16. Qd2 {[%emt 0:07:27]} N7f6 {[%emt 0:06:16]} 17. Rc1 {[%emt 0:10:15]} Qe7 {[%emt 0:04:24]} 18. Qd4 {[%emt 0:08:43]} Rxc1 {[%emt 0:04:26]} 19. Rxc1 {[%emt 0:00:12]} Rd8 {[%emt 0:00:37]} 20. Qe5 {[%emt 0:02:34]} Qf8 {[%emt 0:03:18]} 21. Nd4 {[%emt 0:02:02]} a6 {[%emt 0:02:14]} 22. h3 {[%emt 0:03:15]} Rc8 {[%emt 0:01:20]} 23. Rd1 {[%emt 0:03:30]} Nd7 {[%emt 0:03:01]} 24. Qg3 {[%emt 0:01:01]} N7f6 {[%emt 0:06:12]} 25. Bd3 {[%emt 0:03:46]} Nc3 {[%emt 0:01:37]} 26. Ra1 {[%emt 0:01:42]} Be4 {[%emt 0:00:49]} 27. Bxa6 {[%emt 0:00:41]} Ra8 {[%emt 0:01:40]} 28. Bxc3 {[%emt 0:01:18]} Rxa6 {[%emt 0:00:01]} 29. a4 {[%emt 0:00:27]} Nd5 {[%emt 0:00:43]} 30. Bb2 {[%emt 0:00:14]} Ra8 {[%emt 0:00:32]} 31. Rc1 {[%emt 0:00:37]} Bg6 {[%emt 0:02:03]} 32. Kh2 {[%emt 0:01:23]} Rc8 {[%emt 0:01:04]} 33. Ba3 {[%emt 0:01:29]} Qe8 {[%emt 0:00:31]} 34. Rxc8 {[%emt 0:00:22]} Qxc8 {[%emt 0:00:01]} 35. Bd6 {[%emt 0:01:03]} f6 {[%emt 0:01:23]} 36. Qf3 {[%emt 0:00:40]} Qd7 {[%emt 0:00:49]} 37. Ba3 {[%emt 0:00:37]} e5 {[%emt 0:01:13]} 38. Nb5 {[%emt 0:00:26]} Qe6 {[%emt 0:00:38]} 39. Qe2 {[%emt 0:00:56]} e4 {[%emt 0:00:27]} 40. Nd4 {[%emt 0:00:00]} Qe5+ {[%emt 0:00:00]} 41. Kg1 {[%emt 0:01:18]} h5 {[%emt 0:03:30]} 42. Qc4 {[%emt 0:01:09]} Kh7 {[%emt 0:00:27]} 43. Qc6 {[%emt 0:03:20]} h4 {[%emt 0:01:38]} 44. Bd6 {[%emt 0:01:09]} Qh5 {[%emt 0:00:23]} 45. Kh2 {[%emt 0:01:05]} Be8 {[%emt 0:01:13]} 46. Qc8 {[%emt 0:00:48]} Bg6 {[%emt 0:01:29]} 47. b4 {[%emt 0:05:21]} Qd1 {[%emt 0:02:30]} 48. Qd7 {[%emt 0:00:13]} Kg8 {[%emt 0:01:39]} 49. Qd8+ {[%emt 0:15:22]} Kh7 {[%emt 0:00:09]} 50. Qf8 {[%emt 0:00:32]} Qxa4 {[%emt 0:02:55]} 51. b5 {[%emt 0:01:06]} Qa7 {[%emt 0:01:26]} 52. Qc8 {[%emt 0:03:21]} Qf7 {[%emt 0:06:43]} 53. Qg4 {[%emt 0:00:12]} Qe8 {[%emt 0:01:01]} 54. Qxh4+ {[%emt 0:00:29]} Kg8 {[%emt 0:00:02]} 55. Qg4 {[%emt 0:00:38]} Nc3 {[%emt 0:03:21]} 56. Nc6 {[%emt 0:00:51]} f5 {[%emt 0:02:34]} 57. Qg5 {[%emt 0:01:02]} Qe6 {[%emt 0:00:24]} 58. Qd8+ {[%emt 0:00:42]} Kh7 {[%emt 0:00:02]} 59. Nd4 {[%emt 0:00:13]} Qa2 {[%emt 0:00:35]} 60. Be5 {[%emt 0:01:07]} Qd5 {[%emt 0:00:59]} 61. Qc7 {[%emt 0:00:34]} Bf7 {[%emt 0:01:09]} 62. Bxg7 {[%emt 0:01:05]} Nxb5 {[%emt 0:01:18]} 63. Nxb5 {[%emt 0:00:09]} Kxg7 {[%emt 0:00:05]} 64. Qxb6 {[%emt 0:00:09]} Qe5+ {[%emt 0:00:10]} 65. g3 {[%emt 0:00:09]} Qb2 {[%emt 0:00:20]} 66. Qd4+ {[%emt 0:00:06]} 1-0

[Event "EYCC Open-U18 2019"]
[Site "Bratislava"]
[Date "2019.08.02"]
[Round "1.22"]
[White "Anghelus, Alin-Gabriel"]
[Black "Kaasen, Tor Fredrik"]
[Result "0-1"]
[ECO "A48"]
[WhiteElo "2107"]
[BlackElo "2376"]
[Annotator "NA"]
[PlyCount "74"]
[EventDate "2019.08.02"]
[EventType "swiss"]
[EventCountry "SVK"]
[SourceTitle "playchess.com"]
[Source "ChessBase"]
[SourceQuality "1"]
[TimeControl "40/5400+30:1800+30"]

1. d4 {[%emt 0:00:00]} Nf6 {[%emt 0:00:00]} 2. Nf3 {[%emt 0:00:00]} g6 {[%emt 0:00:10]} 3. Bg5 {[%emt 0:00:31]} Bg7 {[%emt 0:00:24]} 4. Nbd2 {[%emt 0:00:35]} O-O {[%emt 0:00:37]} 5. c3 {[%emt 0:01:09]} d6 {[%emt 0:00:36]} 6. e4 {[%emt 0:00:40]} c5 {[%emt 0:00:22]} 7. dxc5 {[%emt 0:01:38]} dxc5 {[%emt 0:00:19]} 8. Be2 {[%emt 0:00:10]} Nc6 {[%emt 0:01:02]} 9. O-O {[%emt 0:00:38]} Qc7 {[%emt 0:01:22]} 10. h3 {[%emt 0:00:14]} b6 {[%emt 0:01:32]} 11. Re1 {[%emt 0:02:10]} Bb7 {[%emt 0:00:43]} 12. Qc2 {[%emt 0:01:42]} Rfd8 {[%emt 0:03:53]} 13. a4 {[%emt 0:02:20]} h6 {[%emt 0:02:50]} 14. Be3 {[%emt 0:01:02]} Nh5 {[%emt 0:07:29]} 15. Nc4 {[%emt 0:02:36]} Nf4 {[%emt 0:06:25]} 16. Bf1 {[%emt 0:00:13]} Ne6 {[%emt 0:01:43]} 17. Qb3 {[%emt 0:03:07]} Rab8 {[%emt 0:07:20]} 18. g3 {[%emt 0:06:34]} Ba6 {[%emt 0:08:00]} 19. Nfd2 {[%emt 0:01:51]} g5 {[%emt 0:01:04]} 20. Be2 {[%emt 0:09:37]} Ncd4 {[%emt 0:01:24]} 21. cxd4 {[%emt 0:18:55]} cxd4 {[%emt 0:00:19]} 22. Rac1 {[%emt 0:00:23]} Nc5 {[%emt 0:02:35]} 23. Qa3 {[%emt 0:01:09]} dxe3 {[%emt 0:01:57]} 24. Qxe3 {[%emt 0:01:21]} Qd7 {[%emt 0:02:22]} 25. e5 {[%emt 0:02:26]} Qxa4 {[%emt 0:05:17]} 26. Ra1 {[%emt 0:02:13]} Qb4 {[%emt 0:01:57]} 27. f4 {[%emt 0:02:29]} b5 {[%emt 0:04:03]} 28. Na5 {[%emt 0:00:55]} gxf4 {[%emt 0:01:06]} 29. gxf4 {[%emt 0:00:16]} Qxd2 {[%emt 0:00:59]} 30. Qxc5 {[%emt 0:00:26]} Qxf4 {[%emt 0:01:54]} 31. Nc6 {[%emt 0:00:40]} Qg3+ {[%emt 0:01:09]} 32. Kf1 {[%emt 0:00:21]} Bb7 {[%emt 0:00:27]} 33. Ra3 {[%emt 0:00:25]} Qh2 {[%emt 0:00:52]} 34. Nxe7+ {[%emt 0:05:57]} Kh8 {[%emt 0:00:07]} 35. Qf2 {[%emt 0:00:58]} Qh1+ {[%emt 0:01:43]} 36. Qg1 {[%emt 0:00:06]} Qxg1+ {[%emt 0:00:15]} 37. Kxg1 {[%emt 0:00:07]} Bf8 {[%emt 0:00:08]} 0-1

[Event "EYCC Open-U18 2019"]
[Site "Bratislava"]
[Date "2019.08.02"]
[Round "1.23"]
[White "Gatineau, Yovann"]
[Black "Nordquelle, Daniel"]
[Result "1-0"]
[ECO "D00"]
[WhiteElo "2364"]
[BlackElo "2181"]
[Annotator "NA"]
[PlyCount "53"]
[EventDate "2019.08.02"]
[EventType "swiss"]
[EventCountry "SVK"]
[SourceTitle "playchess.com"]
[Source "ChessBase"]
[SourceQuality "1"]
[TimeControl "40/5400+30:1800+30"]

1. d4 {[%emt 0:00:00]} d5 {[%emt 0:00:00]} 2. Bf4 {[%emt 0:00:00]} Nf6 {[%emt 0:00:34]} 3. e3 {[%emt 0:00:00]} e6 {[%emt 0:01:11]} 4. Nf3 {[%emt 0:00:00]} c5 {[%emt 0:00:19]} 5. Nbd2 {[%emt 0:00:07]} Nc6 {[%emt 0:00:11]} 6. c3 {[%emt 0:00:06]} Bd6 {[%emt 0:01:55]} 7. Bg3 {[%emt 0:00:08]} O-O {[%emt 0:04:07]} 8. Bd3 {[%emt 0:00:05]} b6 {[%emt 0:01:49]} 9. e4 {[%emt 0:00:07]} dxe4 {[%emt 0:08:55]} 10. Nxe4 {[%emt 0:00:08]} Nxe4 {[%emt 0:04:35]} 11. Bxe4 {[%emt 0:00:28]} Bb7 {[%emt 0:00:10]} 12. Qa4 {[%emt 0:00:04]} Na5 {[%emt 0:17:21]} 13. dxc5 {[%emt 0:02:58]} Bxc5 {[%emt 0:03:40]} 14. Rd1 {[%emt 0:00:30]} Qc8 {[%emt 0:06:43]} 15. O-O {[%emt 0:23:56]} Be7 {[%emt 0:03:19]} 16. Ne5 {[%emt 0:05:40]} Bxe4 {[%emt 0:05:35]} 17. Qxe4 {[%emt 0:00:07]} Nb7 {[%emt 0:00:18]} 18. Nc6 {[%emt 0:04:38]} Bf6 {[%emt 0:15:35]} 19. Be5 {[%emt 0:02:18]} Qe8 {[%emt 0:00:09]} 20. Bxf6 {[%emt 0:01:09]} gxf6 {[%emt 0:00:11]} 21. Nd4 {[%emt 0:08:34]} Nc5 {[%emt 0:04:55]} 22. Qh4 {[%emt 0:13:33]} Qe7 {[%emt 0:11:21]} 23. Rfe1 {[%emt 0:03:07]} Rad8 {[%emt 0:00:10]} 24. Re3 {[%emt 0:00:34]} Rd5 {[%emt 0:00:47]} 25. Rh3 {[%emt 0:00:20]} h5 {[%emt 0:00:15]} 26. c4 {[%emt 0:01:41]} Rg5 {[%emt 0:02:04]} 27. f4 {[%emt 0:00:18]} 1-0